bitfinex-derivatives/quotes_BNBF0:USTF0_20250603
["timestamp","ask_amount","ask_price","bid_price","bid_amount"]
[1748954772566,3.73434184,665.39,664.28,0.30107785]
[1748954772567,3.73434184,665.39,664.46,0.47904893]
[1748954773466,3.73434184,665.39,664.47,0.47904893]
[1748954773963,3.73434184,665.39,664.48,0.47904893]
[1748954774162,3.73434184,665.38,664.48,0.47904893]
[1748954775474,3.73434184,665.38,664.66,0.47904893]
[1748954775767,3.73434184,665.38,664.67,0.47904893]
[1748954775968,0.26194661,665.64,664.68,0.47904893]
[1748954775969,3.73434184,665.24,664.68,0.47904893]
[1748954776772,3.73434184,665.3,664.68,0.47904893]
[1748954776970,3.73434184,665.3,664.69,0.47904893]
[1748954778365,3.73434184,665.3,664.73,0.47904893]
[1748954778766,3.73434184,665.28,664.74,0.47904893]
[1748954778970,3.73434184,665.28,664.71,0.47904893]
[1748954779171,3.73434184,665.3,664.55,0.47904893]
[1748954779668,3.73434184,665.44,664.54,0.47904893]
[1748954780073,3.73434184,665.43,664.54,0.47904893]
[1748954780469,3.73434184,665.43,664.58,0.47904893]
[1748954780674,3.73434184,665.41,664.58,0.47904893]
[1748954780874,3.73434184,665.41,664.49,0.47904893]
[1748954781075,3.73434184,665.47,664.49,0.47904893]
[1748954781469,3.73434184,665.47,664.48,0.47904893]
[1748954781671,3.73434184,665.48,664.48,0.47904893]
[1748954782074,3.73434184,665.48,664.49,0.47904893]
[1748954782574,3.73434184,665.48,664.5,0.47904893]
[1748954782874,3.73434184,665.48,664.49,0.47904893]
[1748954783070,3.73434184,665.47,664.49,0.47904893]
[1748954783574,3.73434184,665.47,664.5,0.47904893]
[1748954784775,3.73434184,665.47,664.51,0.47904893]
[1748954784975,3.73434184,665.47,664.5,0.47904893]
[1748954785378,3.73434184,665.46,664.5,0.47904893]
[1748954785572,3.73434184,665.46,664.51,0.47904893]
[1748954786676,3.73434184,665.47,664.51,0.47904893]
[1748954788481,3.73434184,665.51,664.45,0.47904893]
[1748954788680,3.73434184,665.51,664.55,0.47904893]
[1748954788873,0.26191112,665.72,664.55,0.47904893]
[1748954788874,3.73434184,665.43,664.55,0.47904893]
[1748954789381,3.73434184,665.43,664.56,0.47904893]
[1748954789577,0.26191112,665.72,664.67,0.47904893]
[1748954789578,3.73434184,665.42,664.67,0.47904893]
[1748954789877,3.73434184,665.34,664.67,0.47904893]
[1748954790384,3.73434184,665.39,664.61,0.47904893]
[1748954790884,3.73434184,665.38,664.61,0.47904893]
[1748954791883,3.73434184,665.38,664.46,0.47904893]
[1748954792184,3.73434184,665.49,664.46,0.47904893]
[1748954793384,3.73434184,665.49,664.34,0.47904893]
[1748954793686,3.73434184,665.57,664.34,0.47904893]
[1748954793884,3.73434184,665.57,664.39,0.47904893]
[1748954794087,3.73434184,665.53,664.39,0.47904893]
[1748954794484,3.73434184,665.52,664.39,0.47904893]
[1748954795181,3.73434184,665.52,664.38,0.47904893]
[1748954795386,3.73434184,665.53,664.38,0.47904893]
[1748954796780,3.73434184,665.54,664.38,0.47904893]
[1748954797984,3.73434184,665.53,664.38,0.47904893]
[1748954798581,3.73434184,665.53,664.41,0.47904893]
[1748954798787,3.73434184,665.51,664.41,0.47904893]
[1748954799388,3.73434184,665.51,664.4,0.47904893]
[1748954799582,3.73434184,665.5,664.41,0.47904893]
[1748954801889,3.73434184,665.5,664.28,0.30107785]
[1748954801890,3.73434184,665.5,664.51,0.47904893]
[1748954802090,3.73434184,665.5,664.5,0.47904893]
[1748954802285,3.73434184,665.43,664.5,0.47904893]
[1748954803182,3.73434184,665.43,664.7,0.47904893]
[1748954803689,3.73434184,665.3,664.71,0.47904893]
[1748954803884,3.73434184,665.3,664.72,0.47904893]
[1748954804083,3.73434184,665.27,664.72,0.47904893]
[1748954804887,3.73434184,665.26,664.72,0.47904893]
[1748954805184,3.73434184,665.26,664.68,0.47904893]
[1748954805391,3.73434184,665.32,664.64,0.47904893]
[1748954806086,3.73434184,665.32,664.69,0.47904893]
[1748954806291,3.73434184,665.28,664.69,0.47904893]
[1748954808192,3.73434184,665.28,664.59,0.47904893]
[1748954808692,3.73434184,665.36,664.59,0.47904893]
[1748954809492,3.73434184,665.35,664.6,0.47904893]
[1748954810088,3.73434184,665.34,664.59,0.47904893]
[1748954810290,3.73434184,665.34,664.6,0.47904893]
[1748954811092,3.73434184,665.34,664.42,0.47904893]
[1748954811289,3.73434184,665.34,664.38,0.47904893]
[1748954811594,3.73434184,665.43,664.33,0.47904893]
[1748954811988,3.73434184,665.44,664.34,1.13663609]
[1748954812188,3.73434184,665.44,664.35,1.13663609]
[1748954812395,0.26191112,665.72,664.36,1.13663609]
[1748954812595,0.30043111,665.71,664.37,1.13663609]
[1748954812796,0.30043111,665.71,664.38,1.13663609]
[1748954812997,0.30043111,665.71,664.39,1.13663609]
[1748954813295,0.30043111,665.71,664.4,1.13663609]
[1748954813495,0.30043111,665.71,664.41,1.13663609]
[1748954813695,0.30043111,665.71,664.28,0.30107785]
[1748954813892,0.30043111,665.71,664.29,1.1294996]
[1748954814090,0.30043111,665.71,664.3,1.1294996]
[1748954814292,0.30043111,665.71,664.31,1.1294996]
[1748954814490,0.30043111,665.71,664.32,1.1294996]
[1748954814689,0.30043111,665.71,664.28,0.30107785]
[1748954814690,0.30043111,665.71,664.33,1.1294996]
[1748954814891,0.30043111,665.71,664.28,0.30107785]
[1748954815092,0.30043111,665.71,664.29,1.12956323]
[1748954815294,0.30043111,665.71,664.3,1.12956323]
[1748954815491,0.30043111,665.71,664.31,1.12956323]
[1748954815690,0.30043111,665.71,664.32,1.12956323]
[1748954815890,0.30043111,665.71,664.28,0.30107785]
[1748954816095,0.30043111,665.71,664.29,1.13079326]
[1748954816294,0.30043111,665.71,664.3,1.13079326]
[1748954816495,0.30043111,665.71,664.31,1.13078918]
[1748954816696,0.30043111,665.71,664.28,0.30107785]
[1748954817597,3.73434184,665.41,664.28,0.30107785]
[1748954818097,3.73434184,665.45,664.28,0.30107785]
[1748954818491,3.73434184,665.46,664.28,0.30107785]
[1748954819494,0.30043111,665.71,664.28,0.30107785]
[1748954819495,3.73434184,665.5,664.28,0.30107785]
[1748954820397,3.73434184,665.49,664.28,0.30107785]
[1748954821698,3.73434184,665.53,664.28,0.30107785]
[1748954822395,3.73434184,665.52,664.28,0.30107785]
[1748954822594,3.73434184,665.53,664.28,0.30107785]
[1748954823898,3.73434184,665.52,664.28,0.30107785]
[1748954824599,3.73434184,665.4,664.28,0.30107785]
[1748954824999,0.30043111,665.71,664.28,0.30107785]
[1748954825000,3.73434184,665.41,664.28,0.30107785]
[1748954825397,3.73434184,665.42,664.28,0.30107785]
[1748954826401,3.73434184,665.43,664.28,0.30107785]
[1748954826802,3.73434184,665.6,664.28,0.30107785]
[1748954827305,3.73434184,665.61,664.28,0.30107785]
[1748954828104,3.73434184,665.56,664.28,0.30107785]
[1748954828502,3.73434184,665.6,664.28,0.30107785]
[1748954829104,3.73434184,665.57,664.28,0.30107785]
[1748954830903,3.73434184,665.54,664.28,0.30107785]
[1748954831306,3.73434184,665.51,664.28,0.30107785]
[1748954834103,3.73434184,665.52,664.28,0.30107785]
[1748954834709,3.73434184,665.51,664.28,0.30107785]
[1748954836112,3.73434184,665.53,664.28,0.30107785]
[1748954836904,3.73434184,665.5,664.28,0.30107785]
[1748954837411,3.73434184,665.45,664.28,0.30107785]
[1748954838108,3.73434184,665.45,664.34,0.47904893]
[1748954838413,3.73434184,665.4,664.34,0.47904893]
[1748954839214,3.73434184,665.4,664.28,0.30107785]
[1748954839713,3.73434184,665.48,664.28,0.30107785]
[1748954841209,3.73434184,665.49,664.28,0.30107785]
[1748954841706,3.73434184,665.48,664.28,0.78012678]
[1748954841909,3.73434184,665.48,664.3,0.47904893]
[1748954842112,3.73434184,665.43,664.32,0.47904893]
[1748954842609,3.73434184,665.42,664.32,0.47904893]
[1748954843012,3.73434184,665.43,664.32,0.47904893]
[1748954843508,3.73434184,665.43,664.33,0.47904893]
[1748954844107,3.73434184,665.43,664.35,0.47904893]
[1748954844308,3.73434184,665.43,664.32,0.47904893]
[1748954844513,3.73434184,665.42,664.33,0.47904893]
[1748954845313,3.73434184,665.42,664.34,0.47904893]
[1748954845514,3.73434184,665.42,664.35,0.47904893]
[1748954845816,3.73434184,665.4,664.38,0.47904893]
[1748954846410,3.73434184,665.39,664.39,0.47904893]
[1748954846612,3.73434184,665.39,664.46,0.47904893]
[1748954846913,5.22807857,665.68,664.43,0.47904893]
[1748954846914,3.73434184,665.35,664.43,0.47904893]
[1748954847316,3.73434184,665.36,664.44,0.47904893]
[1748954847510,3.73434184,665.36,664.45,0.47904893]
[1748954847713,3.73434184,665.35,664.45,0.47904893]
[1748954848411,3.73434184,665.35,664.47,0.47904893]
[1748954849213,3.73434184,665.35,664.6,0.47904893]
[1748954849615,3.73434184,665.26,664.61,0.47904893]
[1748954851117,3.73434184,665.26,664.63,0.47904893]
[1748954851317,3.73434184,665.24,664.63,0.47904893]
[1748954852619,3.73434184,665.21,664.67,0.47904893]
[1748954853216,3.73434184,665.4,664.38,0.47904893]
[1748954853620,3.73434184,665.42,664.38,0.47904893]
[1748954854211,3.73434184,665.42,664.28,0.30107785]
[1748954854212,3.73434184,665.43,664.39,0.47904893]
[1748954854415,3.73434184,665.43,664.4,0.47904893]
[1748954854614,3.73434184,665.41,664.4,0.47904893]
[1748954855016,5.52850968,665.71,664.4,0.47904893]
[1748954855017,3.73434184,665.42,664.4,0.47904893]
[1748954855317,3.73434184,665.42,664.38,0.47904893]
[1748954855518,3.73434184,665.43,664.38,0.47904893]
[1748954856218,3.73434184,665.43,664.39,0.47904893]
[1748954856421,3.73434184,665.42,664.39,0.47904893]
[1748954856716,3.73434184,665.33,664.41,0.47904893]
[1748954857320,3.73434184,665.33,664.42,0.47904893]
[1748954858721,3.73434184,665.32,664.42,0.47904893]
[1748954860323,3.73434184,665.32,664.43,0.47904893]
[1748954860521,3.73434184,665.33,664.44,0.47904893]
[1748954861117,3.73434184,665.33,664.43,0.47904893]
[1748954862624,3.73434184,665.33,664.44,0.47904893]
[1748954862822,3.73434184,665.32,664.45,0.47904893]
[1748954863023,3.73434184,665.32,664.49,0.47904893]
[1748954863228,3.73434184,665.32,664.74,0.47904893]
[1748954863429,5.22807857,665.61,664.74,0.12287636]
[1748954863430,3.73434184,665.1,664.74,0.12287636]
[1748954863830,0.30043111,665.71,664.74,0.12287636]
[1748954863831,3.73434184,665.09,664.74,0.12287636]
[1748954864231,3.73434184,665.16,664.49,0.47878367]
[1748954864432,3.73434184,665.16,664.5,0.61109672]
[1748954864729,3.73434184,665.16,664.51,0.61109672]
[1748954864931,3.73434184,665.16,664.52,0.61109672]
[1748954865128,3.73434184,665.16,664.53,0.61109672]
[1748954865328,3.73434184,665.12,664.54,0.61109672]
[1748954865629,3.73434184,665.12,664.55,0.61109672]
[1748954865933,3.73434184,665.12,664.48,0.47878367]
[1748954865934,3.73434184,665.16,664.56,0.61109672]
[1748954866133,3.73434184,665.16,664.57,0.61109672]
[1748954866335,3.73434184,665.16,664.58,0.61109672]
[1748954866531,3.73434184,665.16,664.59,0.61109672]
[1748954866736,3.73434184,665.16,664.6,0.61109672]
[1748954866936,3.73434184,665.16,664.61,0.61109672]
[1748954867137,3.73434184,665.23,664.49,0.47878367]
[1748954867334,3.73434184,665.23,664.5,0.61105441]
[1748954867530,3.73434184,665.23,664.49,0.47878367]
[1748954867531,3.73434184,665.23,664.51,0.61105441]
[1748954867731,3.73434184,665.23,664.52,0.61105441]
[1748954867935,3.73434184,665.23,664.53,0.61105441]
[1748954868235,3.73434184,665.23,664.38,0.47878367]
[1748954868433,3.73434184,665.29,664.39,0.61103967]
[1748954868637,3.73434184,665.29,664.4,0.61103967]
[1748954868834,3.73434184,665.27,664.41,0.61103967]
[1748954869034,3.73434184,665.27,664.42,0.61103967]
[1748954869432,3.73434184,665.27,664.43,0.61103967]
[1748954869740,3.73434184,665.27,664.44,0.61103967]
[1748954869935,3.73434184,665.27,664.45,0.61103967]
[1748954870136,3.73434184,665.27,664.46,0.61103967]
[1748954870337,3.73434184,665.27,664.47,0.61103967]
[1748954870537,3.73434184,665.27,664.48,0.61103967]
[1748954870838,3.73434184,665.27,664.49,0.61103967]
[1748954871038,3.73434184,665.27,664.5,0.61103967]
[1748954871241,3.73434184,665.27,664.51,0.61103967]
[1748954871443,3.73434184,665.27,664.95,0.47985369]
[1748954871643,3.73434184,665.27,664.38,0.47878367]
[1748954871843,3.73434184,665.27,664.39,0.61104664]
[1748954872145,3.73434184,665.27,664.4,0.61104664]
[1748954872343,3.73434184,665.27,664.37,0.47878367]
[1748954872344,3.73434184,665.27,664.41,0.61104664]
[1748954872643,3.73434184,665.28,664.42,0.61104664]
[1748954872942,3.73434184,665.28,664.43,0.61104664]
[1748954873138,3.73434184,665.28,664.29,0.47878367]
[1748954873344,3.73434184,665.28,664.3,1.74839326]
[1748954873545,3.73434184,665.35,664.31,1.74839326]
[1748954873844,3.73434184,665.35,664.32,0.60890351]
[1748954874045,3.73434184,665.34,664.33,0.60890351]
[1748954874242,3.73434184,665.34,664.28,0.30107785]
[1748954874439,3.73434184,665.42,664.29,1.74792125]
[1748954874639,3.73434184,665.42,664.3,1.1390143]
[1748954874843,3.73434184,665.42,664.31,1.1390143]
[1748954875038,3.73434184,665.42,664.28,0.30107785]
[1748954875243,3.73434184,665.42,664.29,1.7479817]
[1748954875443,3.73434184,665.41,664.3,1.7479817]
[1748954875641,3.73434184,665.41,664.31,1.13907512]
[1748954875945,3.73434184,665.41,664.28,0.30107785]
[1748954876140,3.73434184,665.41,664.29,1.74798245]
[1748954876445,3.73434184,665.41,664.3,1.74798245]
[1748954876741,3.73434184,665.41,664.31,1.74798201]
[1748954876945,3.73434184,665.41,664.32,1.13907544]
[1748954877146,3.73434184,665.41,664.28,0.30107785]
[1748954877340,3.73434184,665.41,664.29,1.14071063]
[1748954877541,3.73434184,665.41,664.3,1.74961743]
[1748954877741,3.73434184,665.41,664.28,0.30107785]
[1748954877742,3.73434184,665.41,664.31,1.74961743]
[1748954877949,3.73434184,665.41,664.32,1.14071063]
[1748954878243,3.73434184,665.39,664.28,0.30107785]
[1748954878449,3.73434184,665.39,664.29,1.14071586]
[1748954878648,5.52850968,665.71,664.3,1.14071586]
[1748954878649,3.73434184,665.45,664.3,1.14071586]
[1748954878943,3.73434184,665.45,664.28,0.30107785]
[1748954878944,3.73434184,665.45,664.31,1.14071586]
[1748954879143,3.73434184,665.5,664.32,1.14071586]
[1748954879354,3.73434184,665.5,664.28,0.30107785]
[1748954879549,3.73434184,665.5,664.29,1.14074458]
[1748954879744,3.73434184,665.5,664.3,1.14074458]
[1748954879945,3.73434184,665.5,664.31,1.14074458]
[1748954880143,3.73434184,665.5,664.28,0.30107785]
[1748954880144,3.73434184,665.5,664.32,1.14074458]
[1748954880345,3.73434184,665.5,664.33,1.14074458]
[1748954880546,3.73434184,665.5,664.28,0.30107785]
[1748954880749,3.73434184,665.5,664.29,1.14074212]
[1748954880948,3.73434184,665.5,664.3,1.14074212]
[1748954881147,3.73434184,665.5,664.31,1.14074212]
[1748954881345,3.73434184,665.5,664.32,1.14074212]
[1748954881553,3.73434184,665.5,664.33,1.14076069]
[1748954881850,3.73434184,665.5,664.28,0.30107785]
[1748954882043,3.73434184,665.5,664.29,1.14076307]
[1748954882244,3.73434184,665.5,664.3,1.14076307]
[1748954882451,3.73434184,665.5,664.31,1.14076307]
[1748954882643,3.73434184,665.5,664.32,1.14076307]
[1748954882848,3.73434184,665.49,664.28,0.30107785]
[1748954883051,3.73434184,665.49,664.29,1.13977115]
[1748954883247,3.73434184,665.49,664.28,0.30107785]
[1748954883248,3.73434184,665.46,664.3,1.13977115]
[1748954883455,3.73434184,665.46,664.31,1.13977115]
[1748954883652,3.73434184,665.46,664.32,1.13977115]
[1748954883853,3.73434184,665.46,664.28,0.30107785]
[1748954884052,3.73434184,665.46,664.29,1.1397981]
[1748954884249,3.73434184,665.46,664.28,0.30107785]
[1748954884250,3.73434184,665.4,664.3,1.74871445]
[1748954884451,3.73434184,665.4,664.31,1.74871445]
[1748954884650,3.73434184,665.4,664.32,1.74871445]
[1748954884851,3.73434184,665.4,664.28,0.30107785]
[1748954885049,3.73434184,665.4,664.29,1.74877975]
[1748954885256,3.73434184,665.4,664.3,1.74877975]
[1748954885553,3.73434184,665.4,664.31,1.74877975]
[1748954885753,3.73434184,665.4,664.32,1.74877975]
[1748954885948,3.73434184,665.4,664.28,0.30107785]
[1748954886148,3.73434184,665.4,664.29,1.74879936]
[1748954886350,3.73434184,665.4,664.3,1.74879936]
[1748954886553,3.73434184,665.4,664.31,1.74879936]
[1748954886755,3.73434184,665.4,664.32,1.13987958]
[1748954887056,3.73434184,665.4,664.28,0.30107785]
[1748954887253,3.73434184,665.4,664.29,1.7488043]
[1748954887447,3.73434184,665.4,664.3,1.7488043]
[1748954887651,3.73434184,665.4,664.31,1.7488043]
[1748954887851,3.73434184,665.39,664.32,1.7488043]
[1748954888053,3.73434184,665.39,664.33,0.60892151]
[1748954888355,3.73434184,665.3,664.34,0.60892151]
[1748954888554,3.73434184,665.3,664.35,0.60892151]
[1748954888749,3.73434184,665.3,664.3,0.47878367]
[1748954888750,3.73434184,665.3,664.36,0.60892151]
[1748954889053,3.73434184,665.3,664.57,0.47878367]
[1748954889252,3.73434184,665.13,664.58,0.60892151]
[1748954889453,3.73434184,665.13,664.59,0.60892151]
[1748954889754,3.73434184,665.13,664.6,0.60892151]
[1748954889955,3.73434184,665.13,664.61,0.60892151]
[1748954890152,3.73434184,665.13,664.57,0.47878367]
[1748954890153,3.73434184,665.12,664.62,0.60892151]
[1748954890346,3.73434184,665.12,664.63,0.60892151]
[1748954890552,3.73434184,665.12,664.64,0.60892151]
[1748954890748,3.73434184,665.12,664.65,0.60892151]
[1748954890952,3.73434184,665.12,664.66,0.60892151]
[1748954891148,3.73434184,665.13,664.67,0.60892151]
[1748954891351,3.73434184,665.13,664.68,0.60892151]
[1748954891647,3.73434184,665.13,664.56,0.47878367]
[1748954891851,3.73434184,665.13,664.57,0.60892607]
[1748954892255,3.73434184,665.13,664.58,0.60892607]
[1748954892455,3.73434184,665.13,664.59,0.60892607]
[1748954892756,3.73434184,665.13,664.6,0.60892607]
[1748954892950,3.73434184,665.13,664.61,0.60892607]
[1748954893257,3.73434184,665.13,664.62,0.60892607]
[1748954893459,3.73434184,665.11,664.63,0.60892607]
[1748954893755,3.73434184,665.11,664.64,0.60892607]
[1748954893954,3.73434184,665.1,664.65,0.60892607]
[1748954894164,3.73434184,665.1,664.66,0.60892607]
[1748954894353,3.73434184,665.1,664.67,0.60892607]
[1748954894555,3.73434184,665.1,664.55,0.47878367]
[1748954894755,3.73434184,665.11,664.56,0.60884928]
[1748954894955,3.73434184,665.11,664.57,0.60884928]
[1748954895157,3.73434184,665.11,664.58,0.60884928]
[1748954895358,3.73434184,665.11,664.59,0.60884928]
[1748954895551,3.73434184,665.12,664.6,0.60884928]
[1748954895757,3.73434184,665.12,664.61,0.60884928]
[1748954895953,3.73434184,665.12,664.62,0.60884928]
[1748954896158,3.73434184,665.17,664.43,0.47878367]
[1748954896357,3.73434184,665.17,664.44,0.60881978]
[1748954896554,3.73434184,665.17,664.45,0.60881978]
[1748954896756,3.73434184,665.17,664.46,0.60881978]
[1748954896953,3.73434184,665.17,664.28,0.30107785]
[1748954896954,3.73434184,665.17,664.47,1.08760345]
[1748954897152,3.73434184,665.15,664.48,0.60881978]
[1748954897358,3.73434184,665.15,664.49,0.60881978]
[1748954897558,3.73434184,665.15,664.5,0.60881978]
[1748954897754,3.73434184,665.15,664.51,0.60881978]
[1748954897957,3.73434184,665.15,664.52,0.60881978]
[1748954898157,3.73434184,665.15,664.28,0.30107785]
[1748954898354,5.22807857,665.39,664.28,0.30107785]
[1748954898855,3.73434184,665.41,664.28,0.30107785]
[1748954899257,3.73434184,665.44,664.28,0.30107785]
[1748954899861,3.73434184,665.42,664.28,0.30107785]
[1748954900861,3.73434184,665.41,664.28,0.30107785]
[1748954901962,3.73434184,665.43,664.28,0.30107785]
[1748954903563,0.30043111,665.71,664.28,0.30107785]
[1748954903564,3.73434184,665.44,664.28,0.30107785]
[1748954906362,3.73434184,665.43,664.28,0.30107785]
[1748954906762,3.73434184,665.38,664.28,0.30107785]
[1748954908165,3.73434184,665.24,664.29,0.60872647]
[1748954908362,3.73434184,665.24,664.3,0.60872647]
[1748954908566,3.73434184,665.23,664.31,0.60872647]
[1748954908766,3.73434184,665.23,664.32,0.60872647]
[1748954908963,3.73434184,665.23,664.33,0.60872647]
[1748954909166,3.73434184,665.23,664.28,0.30107785]
[1748954909167,3.73434184,665.18,664.35,0.47878367]
[1748954909366,3.73434184,665.18,664.36,0.60872647]
[1748954909568,3.73434184,665.18,664.37,0.60872647]
[1748954909768,3.73434184,665.18,664.38,0.60872647]
[1748954909973,3.73434184,665.18,664.39,0.60872647]
[1748954910271,3.73434184,665.18,664.28,0.30107785]
[1748954910466,3.73434184,665.29,664.29,0.60872984]
[1748954910668,3.73434184,665.29,664.3,0.60872984]
[1748954910866,3.73434184,665.29,664.31,0.60872984]
[1748954911071,3.73434184,665.29,664.32,0.60872984]
[1748954911273,3.73434184,665.26,664.33,0.60872984]
[1748954911467,3.73434184,665.26,664.34,0.60872984]
[1748954911773,0.30043111,665.71,664.35,0.60872984]
[1748954911774,3.73434184,665.23,664.35,0.60872984]
[1748954912074,3.73434184,665.23,664.36,0.60872984]
[1748954912272,3.73434184,665.23,664.37,0.60872984]
[1748954912466,3.73434184,665.23,664.38,0.60872984]
[1748954912669,3.73434184,665.23,664.39,0.60872984]
[1748954912871,3.73434184,665.23,664.4,0.60872984]
[1748954913069,3.73434184,665.23,664.41,0.60872984]
[1748954913267,5.22807857,665.5,664.28,0.30107785]
[1748954913268,3.73434184,665.31,664.28,0.30107785]
[1748954913471,3.73434184,665.31,664.29,0.60874889]
[1748954913672,3.73434184,665.31,664.3,0.60874889]
[1748954913973,3.73434184,665.31,664.28,0.30107785]
[1748954914566,3.73434184,665.35,664.28,0.30107785]
[1748954916673,3.73434184,665.35,664.29,1.13225275]
[1748954916873,3.73434184,665.35,664.28,0.30107785]
[1748954917173,3.73434184,665.4,664.28,0.30107785]
[1748954918773,3.73434184,665.41,664.28,0.30107785]
[1748954919668,3.73434184,665.42,664.28,0.30107785]
[1748954920069,3.73434184,665.36,664.29,0.60880891]
[1748954920573,3.73434184,665.36,664.3,0.60880891]
[1748954920770,3.73434184,665.34,664.31,0.60880891]
[1748954921074,3.73434184,665.34,664.32,0.60880891]
[1748954921374,3.73434184,665.34,664.33,0.60880891]
[1748954921569,3.73434184,665.34,664.34,0.60880891]
[1748954921770,3.73434184,665.34,664.35,0.60880891]
[1748954921967,3.73434184,665.33,664.36,0.60880891]
[1748954922172,3.73434184,665.33,664.28,0.30107785]
[1748954922368,3.73434184,665.33,664.29,0.60883957]
[1748954922573,3.73434184,665.33,664.3,0.60883957]
[1748954922771,3.73434184,665.33,664.31,0.60883957]
[1748954922970,3.73434184,665.37,664.32,0.60883957]
[1748954923174,3.73434184,665.37,664.33,0.60883957]
[1748954923378,3.73434184,665.38,664.41,0.47981203]
[1748954923871,3.73434184,665.39,664.42,0.47981203]
[1748954924471,5.22807857,665.68,664.41,0.47981203]
[1748954924472,3.73434184,665.38,664.41,0.47981203]
[1748954926976,3.73434184,665.38,664.4,0.47981203]
[1748954927277,3.73434184,665.38,664.41,0.47981203]
[1748954927578,3.73434184,665.37,664.4,0.47981203]
[1748954928176,3.73434184,665.37,664.41,0.47981203]
[1748954928477,3.73434184,665.38,664.39,0.47981203]
[1748954929372,3.73434184,665.38,664.28,0.30107785]
[1748954929373,3.73434184,665.37,664.4,0.47981203]
[1748954929776,3.73434184,665.4,664.42,0.47981203]
[1748954930370,3.73434184,665.43,664.44,0.47981203]
[1748954930572,3.73434184,665.43,664.43,0.47981203]
[1748954931178,3.73434184,665.44,664.44,0.47981203]
[1748954931577,3.73434184,665.44,664.28,0.30107785]
[1748954931578,3.73434184,665.44,664.43,0.47981203]
[1748954931877,3.73434184,665.44,664.42,0.47981203]
[1748954932473,3.73434184,665.44,664.41,0.47981203]
[1748954932678,3.73434184,665.44,664.42,0.47981203]
[1748954932980,3.73434184,665.44,664.65,0.47981203]
[1748954933175,3.73434184,665.26,664.66,0.47981203]
[1748954933372,3.73434184,665.26,664.42,0.47981203]
[1748954933578,3.73434184,665.44,664.41,0.47981203]
[1748954934477,3.73434184,665.45,664.41,0.47981203]
[1748954935472,3.73434184,665.45,664.4,0.47981203]
[1748954937174,3.73434184,665.44,664.4,0.47981203]
[1748954938079,3.73434184,665.43,664.42,0.47981203]
[1748954938580,3.73434184,665.43,664.41,0.47981203]
[1748954939582,0.30043111,665.71,664.28,0.30107785]
[1748954939778,0.30043111,665.71,664.29,1.13118657]
[1748954939980,0.30043111,665.71,664.3,1.43225536]
[1748954940180,0.30043111,665.71,664.31,1.43225083]
[1748954940376,0.30043111,665.71,664.32,1.4322463]
[1748954940579,0.30043111,665.71,664.33,1.43221837]
[1748954940780,0.30043111,665.71,664.34,1.43221384]
[1748954940982,0.30043111,665.71,664.35,1.13116318]
[1748954941179,0.30043111,665.71,664.36,1.13116318]
[1748954941384,0.30043111,665.71,664.37,1.13116318]
[1748954941579,0.30043111,665.71,664.38,1.13116318]
[1748954941778,0.30043111,665.71,664.34,0.30105066]
[1748954941986,0.30043111,665.71,664.35,1.13178878]
[1748954942287,0.30043111,665.71,664.34,0.30105066]
[1748954942288,0.30043111,665.71,664.36,1.13178878]
[1748954942486,0.30043111,665.71,664.37,1.13178878]
[1748954942687,0.30043111,665.71,664.38,1.13178878]
[1748954942889,0.30043111,665.71,664.34,0.30105066]
[1748954943191,0.30043111,665.71,664.35,1.13276488]
[1748954943389,0.30043111,665.71,664.36,1.13276488]
[1748954943590,0.30043111,665.71,664.37,1.13276488]
[1748954943889,0.30043111,665.71,664.38,1.13276488]
[1748954944092,0.30043111,665.71,664.34,0.30105066]
[1748954944289,0.30043111,665.71,664.35,1.1326731]
[1748954944489,0.30043111,665.71,664.36,1.1326731]
[1748954944789,0.30043111,665.71,664.37,1.1326731]
[1748954944986,0.30043111,665.71,664.34,0.30105066]
[1748954945192,0.30043111,665.71,664.35,1.13258901]
[1748954945391,0.30043111,665.71,664.36,1.13258901]
[1748954945587,0.30043111,665.71,664.34,0.30105066]
[1748954945791,0.30043111,665.71,664.35,1.13251553]
[1748954945990,0.30043111,665.71,664.36,1.13251553]
[1748954946290,0.30043111,665.71,664.34,0.30105066]
[1748954946592,0.30043111,665.71,664.35,1.13245934]
[1748954946784,0.30043111,665.71,664.34,0.30105066]
[1748954948286,3.73434184,665.63,664.34,0.30105066]
[1748954949187,0.30043111,665.71,664.34,0.30105066]
[1748954954298,4.03477295,665.71,664.34,0.30105066]
[1748954954707,3.73434184,665.7,664.34,0.30105066]
[1748954954999,0.30044014,665.69,664.34,0.30105066]
[1748954956099,4.03478198,665.69,664.34,0.30105066]
[1748954956501,3.73434184,665.5,664.34,0.30105066]
[1748954956897,3.73434184,665.56,664.34,0.30105066]
[1748954958201,3.73434184,665.56,664.35,0.47981203]
[1748954958403,3.73434184,665.26,664.34,0.78086269]
[1748954959304,3.73434184,665.26,664.34,0.30105066]
[1748954959896,0.30044014,665.69,664.34,0.30105066]
[1748954959897,3.73434184,665.41,664.34,0.30105066]
[1748954960101,3.73434184,665.41,663.88,0.47981203]
[1748954960402,3.73434184,665.38,663.89,1.4362262]
[1748954960604,3.73434184,665.38,663.9,2.55694658]
[1748954960905,3.73434184,665.38,663.91,1.43621713]
[1748954961204,3.73434184,665.37,663.92,1.43621259]
[1748954961405,3.73434184,665.37,663.93,1.43620805]
[1748954961599,3.73434184,665.37,663.94,1.43620351]